[Event "Betsys MČR v online bleskovém šachu 2021"]
[Site "Chess.com"]
[Date "2021.04.17"]
[Round "13"]
[White "Pekibeast"]
[Black "Tretrik"]
[Result "0-1"]
[WhiteElo "1886"]
[BlackElo "2110"]
[TimeControl "180+1"]
[EndTime "11:11:14 PDT"]
[Termination "Uživatel Tretrik zvítězil matem"]

1. e4 {[%clk 0:03:00.9]} 1... b6 {[%clk 0:02:56.9]} 2. Nc3 {[%clk 0:02:59.6]}
2... Bb7 {[%clk 0:02:57.4]} 3. Nf3 {[%clk 0:02:58.9]} 3... e6 {[%clk 0:02:57.6]}
4. d4 {[%clk 0:02:58.9]} 4... Bb4 {[%clk 0:02:57.9]} 5. Bd3 {[%clk 0:02:58.3]}
5... Nf6 {[%clk 0:02:58.2]} 6. Qe2 {[%clk 0:02:58.4]} 6... d5 {[%clk 0:02:58.3]}
7. e5 {[%clk 0:02:58.2]} 7... Ne4 {[%clk 0:02:58.1]} 8. Bd2 {[%clk 0:02:57.6]}
8... Nxd2 {[%clk 0:02:58]} 9. Qxd2 {[%clk 0:02:57.9]} 9... h6 {[%clk 0:02:51.6]}
10. a3 {[%clk 0:02:58.2]} 10... Be7 {[%clk 0:02:51.4]} 11. O-O {[%clk
0:02:57.9]} 11... c5 {[%clk 0:02:51.9]} 12. Rfe1 {[%clk 0:02:53.1]} 12... O-O
{[%clk 0:02:51.2]} 13. b3 {[%clk 0:02:51.1]} 13... Nc6 {[%clk 0:02:49.7]} 14.
Bf1 {[%clk 0:02:49.1]} 14... cxd4 {[%clk 0:02:48.2]} 15. Nxd4 {[%clk 0:02:49.2]}
15... Nxd4 {[%clk 0:02:49.1]} 16. Qxd4 {[%clk 0:02:49.6]} 16... Rc8 {[%clk
0:02:47.1]} 17. Qd2 {[%clk 0:02:39.3]} 17... Qc7 {[%clk 0:02:38.2]} 18. Nb5
{[%clk 0:02:37.5]} 18... Qxc2 {[%clk 0:02:35.6]} 19. Qxc2 {[%clk 0:02:38]} 19...
Rxc2 {[%clk 0:02:35.9]} 20. Nxa7 {[%clk 0:02:38.8]} 20... f6 {[%clk 0:02:07.8]}
21. exf6 {[%clk 0:02:15.8]} 21... Bxf6 {[%clk 0:02:07.2]} 22. Rad1 {[%clk
0:02:15.7]} 22... d4 {[%clk 0:01:28.6]} 23. Nb5 {[%clk 0:02:08.6]} 23... Bh4
{[%clk 0:01:25.8]} 24. g3 {[%clk 0:02:05.8]} 24... Rfxf2 {[%clk 0:01:23.9]} 25.
gxh4 {[%clk 0:02:02]} 25... Rxh2 {[%clk 0:01:23.8]} 26. Be2 {[%clk 0:01:42]}
26... Rg2+ {[%clk 0:00:42]} 27. Kf1 {[%clk 0:01:41.3]} 27... Rc8 {[%clk
0:00:39.9]} 28. Nxd4 {[%clk 0:01:29.2]} 28... Rf8+ {[%clk 0:00:31.4]} 29. Bf3
{[%clk 0:01:29.3]} 29... Bxf3 {[%clk 0:00:30.3]} 30. Nxf3 {[%clk 0:01:28.7]}
30... Rg3 {[%clk 0:00:30.8]} 31. Rxe6 {[%clk 0:01:25.5]} 31... Rfxf3+ {[%clk
0:00:28.9]} 32. Ke2 {[%clk 0:01:25.9]} 32... Rxb3 {[%clk 0:00:28.5]} 33. Rd8+
{[%clk 0:01:23.1]} 33... Kh7 {[%clk 0:00:27.8]} 34. Ra8 {[%clk 0:01:19.9]} 34...
Rb2+ {[%clk 0:00:21.6]} 35. Kf1 {[%clk 0:01:18.7]} 35... Rh3 {[%clk 0:00:20.9]}
36. Kg1 {[%clk 0:01:17.6]} 36... Rxh4 {[%clk 0:00:21]} 37. Ra6 {[%clk
0:01:11.2]} 37... Rg4+ {[%clk 0:00:20]} 38. Kf1 {[%clk 0:01:09.4]} 38... Rf4+
{[%clk 0:00:19.7]} 39. Kg1 {[%clk 0:01:09.7]} 39... Rc4 {[%clk 0:00:19.5]} 40.
Re1 {[%clk 0:01:06]} 40... h5 {[%clk 0:00:16.5]} 41. Ra7 {[%clk 0:01:05]} 41...
Kh6 {[%clk 0:00:16.1]} 42. Rf7 {[%clk 0:01:04.8]} 42... Rc3 {[%clk 0:00:14.6]}
43. Ra1 {[%clk 0:01:02.8]} 43... Rg3+ {[%clk 0:00:13.3]} 44. Kf1 {[%clk
0:01:02.2]} 44... h4 {[%clk 0:00:13.2]} 45. Rc7 {[%clk 0:01:01]} 45... h3 {[%clk
0:00:12.4]} 46. Rc6+ {[%clk 0:01:00.1]} 46... g6 {[%clk 0:00:12.5]} 47. Rc8
{[%clk 0:00:56.1]} 47... Kg5 {[%clk 0:00:08.9]} 48. Re8 {[%clk 0:00:52.3]} 48...
h2 {[%clk 0:00:08.5]} 49. Re5+ {[%clk 0:00:51.5]} 49... Kf6 {[%clk 0:00:07.5]}
50. Re6+ {[%clk 0:00:49.4]} 50... Kxe6 {[%clk 0:00:07.1]} 51. Re1+ {[%clk
0:00:50.3]} 51... Kf6 {[%clk 0:00:07.4]} 52. Re6+ {[%clk 0:00:50.7]} 52... Kxe6
{[%clk 0:00:07.1]} 53. a4 {[%clk 0:00:51]} 53... Rg1# {[%clk 0:00:07]} 0-1

[Event "Betsys MČR v online bleskovém šachu 2021"]
[Site "Chess.com"]
[Date "2021.04.17"]
[Round "13"]
[White "tudlenudle"]
[Black "DavidekIII"]
[Result "1-0"]
[WhiteElo "1962"]
[BlackElo "2172"]
[TimeControl "180+1"]
[EndTime "11:11:14 PDT"]
[Termination "Uživatel tudlenudle zvítězil na čas"]

1. e4 {[%clk 0:03:00.9]} 1... c6 {[%clk 0:02:59.8]} 2. d4 {[%clk 0:02:59.4]}
2... d5 {[%clk 0:03:00.7]} 3. f3 {[%clk 0:02:59.9]} 3... Qb6 {[%clk 0:02:56.4]}
4. Nc3 {[%clk 0:02:57.5]} 4... dxe4 {[%clk 0:02:55.2]} 5. fxe4 {[%clk
0:02:54.9]} 5... e5 {[%clk 0:02:54.9]} 6. Nf3 {[%clk 0:02:42.3]} 6... exd4
{[%clk 0:02:50]} 7. Qxd4 {[%clk 0:02:37.5]} 7... Qxd4 {[%clk 0:02:46.1]} 8. Nxd4
{[%clk 0:02:38.4]} 8... Bb4 {[%clk 0:02:44.2]} 9. Nf5 {[%clk 0:02:23.9]} 9...
Bxf5 {[%clk 0:02:28.1]} 10. exf5 {[%clk 0:02:21.1]} 10... Nf6 {[%clk 0:02:27.8]}
11. Bd2 {[%clk 0:02:15.4]} 11... O-O {[%clk 0:02:26.4]} 12. O-O-O {[%clk
0:02:15.3]} 12... Nbd7 {[%clk 0:02:24.6]} 13. a3 {[%clk 0:02:13.1]} 13... Ba5
{[%clk 0:02:20.3]} 14. h3 {[%clk 0:02:13.5]} 14... h5 {[%clk 0:01:58.3]} 15. Bd3
{[%clk 0:02:06.2]} 15... Ne5 {[%clk 0:01:39.4]} 16. Be2 {[%clk 0:01:45]} 16...
Rfe8 {[%clk 0:01:31.5]} 17. Rhe1 {[%clk 0:01:40.7]} 17... Rad8 {[%clk
0:01:12.6]} 18. b4 {[%clk 0:01:34.1]} 18... Bb6 {[%clk 0:01:07.3]} 19. Bg5
{[%clk 0:01:29]} 19... a5 {[%clk 0:00:28.6]} 20. Bxf6 {[%clk 0:01:23.6]} 20...
gxf6 {[%clk 0:00:28.6]} 21. Bxh5 {[%clk 0:01:17.4]} 21... axb4 {[%clk
0:00:25.5]} 22. axb4 {[%clk 0:01:02.6]} 22... Kg7 {[%clk 0:00:23.8]} 23. Kb2
{[%clk 0:00:46.2]} 23... Nc4+ {[%clk 0:00:10.3]} 24. Kb3 {[%clk 0:00:46.2]}
24... Nd2+ {[%clk 0:00:07.1]} 25. Kb2 {[%clk 0:00:45.9]} 25... Nc4+ {[%clk
0:00:03.1]} 26. Kb1 {[%clk 0:00:22.9]} 26... Ne5 {[%clk 0:00:04]} 27. Ne4 {[%clk
0:00:17.4]} 27... Rd4 {[%clk 0:00:02.8]} 28. c3 {[%clk 0:00:15.9]} 28... Rxd1+
{[%clk 0:00:02.5]} 29. Rxd1 {[%clk 0:00:15.6]} 29... Ra8 {[%clk 0:00:02.4]} 30.
Nd6 {[%clk 0:00:15.1]} 30... Ra3 {[%clk 0:00:02.3]} 31. Kb2 {[%clk 0:00:14.7]}
31... Ra6 {[%clk 0:00:01.1]} 32. Nxb7 {[%clk 0:00:13.3]} 32... Ra7 {[%clk
0:00:01.2]} 33. Nc5 {[%clk 0:00:12.5]} 1-0

[Event "Betsys MČR v online bleskovém šachu 2021"]
[Site "Chess.com"]
[Date "2021.04.17"]
[Round "13"]
[White "veronikam"]
[Black "Classemence"]
[Result "1-0"]
[WhiteElo "1759"]
[BlackElo "1871"]
[TimeControl "180+1"]
[EndTime "11:11:14 PDT"]
[Termination "Uživatel veronikam zvítězil matem"]

1. e4 {[%clk 0:03:00.9]} 1... e5 {[%clk 0:02:59.3]} 2. Nf3 {[%clk 0:03:00.9]}
2... Nc6 {[%clk 0:02:57.7]} 3. Bb5 {[%clk 0:03:00.6]} 3... a6 {[%clk 0:02:57]}
4. Ba4 {[%clk 0:03:01]} 4... Nf6 {[%clk 0:02:57]} 5. O-O {[%clk 0:03:01.1]} 5...
Be7 {[%clk 0:02:57.6]} 6. d4 {[%clk 0:02:59.1]} 6... exd4 {[%clk 0:02:47.6]} 7.
e5 {[%clk 0:02:55.8]} 7... Ne4 {[%clk 0:02:46.2]} 8. Re1 {[%clk 0:02:54.7]} 8...
Nc5 {[%clk 0:02:41.7]} 9. Bxc6 {[%clk 0:02:50.4]} 9... dxc6 {[%clk 0:02:42.6]}
10. Nxd4 {[%clk 0:02:49.2]} 10... O-O {[%clk 0:02:42]} 11. Nc3 {[%clk
0:02:48.8]} 11... Ne6 {[%clk 0:02:41.1]} 12. Be3 {[%clk 0:02:46.5]} 12... Bb4
{[%clk 0:02:37.7]} 13. a3 {[%clk 0:02:39.9]} 13... Ba5 {[%clk 0:02:24.6]} 14. b4
{[%clk 0:02:31.2]} 14... Bb6 {[%clk 0:02:24]} 15. Nxe6 {[%clk 0:02:28.8]} 15...
Bxe6 {[%clk 0:02:24.9]} 16. Bxb6 {[%clk 0:02:25.2]} 16... cxb6 {[%clk
0:02:25.8]} 17. Qxd8 {[%clk 0:02:24.7]} 17... Raxd8 {[%clk 0:02:26.7]} 18. Rad1
{[%clk 0:02:23.9]} 18... Bf5 {[%clk 0:02:19.9]} 19. Re2 {[%clk 0:02:04]} 19...
Rxd1+ {[%clk 0:02:18.4]} 20. Nxd1 {[%clk 0:02:03.7]} 20... Rd8 {[%clk 0:02:19]}
21. Ne3 {[%clk 0:02:02]} 21... g6 {[%clk 0:02:09.9]} 22. Kf1 {[%clk 0:01:57.8]}
22... Be6 {[%clk 0:02:08]} 23. Ke1 {[%clk 0:01:54.5]} 23... Kg7 {[%clk
0:01:51.1]} 24. g3 {[%clk 0:01:40.4]} 24... f5 {[%clk 0:01:47.1]} 25. Rd2 {[%clk
0:01:35.9]} 25... Rxd2 {[%clk 0:01:42.4]} 26. Kxd2 {[%clk 0:01:36]} 26... g5
{[%clk 0:01:32.3]} 27. Kd3 {[%clk 0:01:33.1]} 27... f4 {[%clk 0:01:15.6]} 28.
Nc4 {[%clk 0:01:32.5]} 28... Bxc4+ {[%clk 0:00:42.7]} 29. Kxc4 {[%clk
0:01:32.4]} 29... Kf7 {[%clk 0:00:41.1]} 30. a4 {[%clk 0:01:25.4]} 30... Ke6
{[%clk 0:00:38.7]} 31. Kd4 {[%clk 0:01:23.5]} 31... h5 {[%clk 0:00:23.4]} 32.
gxf4 {[%clk 0:01:21.2]} 32... gxf4 {[%clk 0:00:22.9]} 33. Ke4 {[%clk 0:01:20.7]}
33... f3 {[%clk 0:00:22.5]} 34. c4 {[%clk 0:01:17.2]} 34... a5 {[%clk 0:00:17]}
35. b5 {[%clk 0:01:04.8]} 35... c5 {[%clk 0:00:14.2]} 36. h4 {[%clk 0:01:01]}
36... Ke7 {[%clk 0:00:11]} 37. Kxf3 {[%clk 0:00:59.8]} 37... Kf7 {[%clk
0:00:11.2]} 38. Ke4 {[%clk 0:00:56.5]} 38... Ke6 {[%clk 0:00:09.9]} 39. f4
{[%clk 0:00:55.6]} 39... Kf7 {[%clk 0:00:10.1]} 40. f5 {[%clk 0:00:55.6]} 40...
Ke7 {[%clk 0:00:11]} 41. Kd5 {[%clk 0:00:55.6]} 41... Kf7 {[%clk 0:00:11.9]} 42.
e6+ {[%clk 0:00:55]} 42... Ke7 {[%clk 0:00:12.8]} 43. Ke5 {[%clk 0:00:54.5]}
43... Kf8 {[%clk 0:00:12.7]} 44. Kf6 {[%clk 0:00:52.5]} 44... Ke8 {[%clk
0:00:13.6]} 45. e7 {[%clk 0:00:52.3]} 45... Kd7 {[%clk 0:00:13.8]} 46. Kf7
{[%clk 0:00:52.5]} 46... Kd6 {[%clk 0:00:14.5]} 47. e8=Q {[%clk 0:00:51.9]}
47... Kc7 {[%clk 0:00:14.1]} 48. Qe7+ {[%clk 0:00:50.3]} 48... Kc8 {[%clk
0:00:14]} 49. Qe6+ {[%clk 0:00:50.2]} 49... Kc7 {[%clk 0:00:14.3]} 50. Qe5+
{[%clk 0:00:49.4]} 50... Kc8 {[%clk 0:00:14.2]} 51. Ke6 {[%clk 0:00:47.9]} 51...
Kd8 {[%clk 0:00:11.2]} 52. Kd6 {[%clk 0:00:47.8]} 52... Kc8 {[%clk 0:00:10.3]}
53. Qe8# {[%clk 0:00:47.2]} 1-0

[Event "Betsys MČR v online bleskovém šachu 2021"]
[Site "Chess.com"]
[Date "2021.04.17"]
[Round "13"]
[White "PaulS_CR"]
[Black "PremetFugas"]
[Result "1-0"]
[WhiteElo "1843"]
[BlackElo "2056"]
[TimeControl "180+1"]
[EndTime "11:11:15 PDT"]
[Termination "Uživatel PaulS_CR zvítězil na čas"]

1. Nf3 {[%clk 0:03:00.9]} 1... d5 {[%clk 0:02:58.1]} 2. e3 {[%clk 0:02:59.9]}
2... g6 {[%clk 0:02:55.8]} 3. c4 {[%clk 0:02:58.6]} 3... c6 {[%clk 0:02:50.7]}
4. d4 {[%clk 0:02:55.9]} 4... Bg7 {[%clk 0:02:48]} 5. Nc3 {[%clk 0:02:55.6]}
5... Nf6 {[%clk 0:02:41.9]} 6. Qb3 {[%clk 0:02:53.8]} 6... O-O {[%clk
0:02:39.7]} 7. cxd5 {[%clk 0:02:52]} 7... cxd5 {[%clk 0:02:38.4]} 8. Be2 {[%clk
0:02:50.9]} 8... Nc6 {[%clk 0:02:37.4]} 9. O-O {[%clk 0:02:49.9]} 9... b6 {[%clk
0:02:22.5]} 10. Qa4 {[%clk 0:02:44.5]} 10... Bb7 {[%clk 0:02:18.7]} 11. Ba6
{[%clk 0:02:42.7]} 11... Bxa6 {[%clk 0:02:16.1]} 12. Qxa6 {[%clk 0:02:42.4]}
12... Qc8 {[%clk 0:02:11.4]} 13. Qxc8 {[%clk 0:02:39.4]} 13... Raxc8 {[%clk
0:02:09]} 14. Bd2 {[%clk 0:02:36.9]} 14... e6 {[%clk 0:02:06.3]} 15. a3 {[%clk
0:02:27.9]} 15... Na5 {[%clk 0:01:48.1]} 16. Nb5 {[%clk 0:02:21.1]} 16... Nb3
{[%clk 0:01:46.1]} 17. Rad1 {[%clk 0:02:19]} 17... a6 {[%clk 0:01:36]} 18. Nc3
{[%clk 0:02:14.2]} 18... Rc7 {[%clk 0:01:32.3]} 19. Rfe1 {[%clk 0:01:58.7]}
19... Rfc8 {[%clk 0:01:30.4]} 20. Re2 {[%clk 0:01:53.7]} 20... h6 {[%clk
0:01:28]} 21. Be1 {[%clk 0:01:51.4]} 21... Bf8 {[%clk 0:01:25.2]} 22. Ne5 {[%clk
0:01:33.5]} 22... Nd7 {[%clk 0:01:11.1]} 23. Nxd7 {[%clk 0:01:28.9]} 23... Rxd7
{[%clk 0:01:10.7]} 24. Na2 {[%clk 0:01:05.6]} 24... Rdc7 {[%clk 0:01:03.6]} 25.
Kf1 {[%clk 0:01:05.1]} 25... Nc1 {[%clk 0:00:58.2]} 26. Nxc1 {[%clk 0:01:02.7]}
26... Rxc1 {[%clk 0:00:57.4]} 27. Red2 {[%clk 0:00:54.8]} 27... Bd6 {[%clk
0:00:51.3]} 28. g3 {[%clk 0:00:43.6]} 28... Kf8 {[%clk 0:00:48.7]} 29. Ke2
{[%clk 0:00:42.7]} 29... Ke7 {[%clk 0:00:47.5]} 30. Rxc1 {[%clk 0:00:39.8]}
30... Rxc1 {[%clk 0:00:46.6]} 31. Rd1 {[%clk 0:00:38.5]} 31... Rc2+ {[%clk
0:00:45.1]} 32. Rd2 {[%clk 0:00:38.4]} 32... Rc8 {[%clk 0:00:43.1]} 33. Kd1
{[%clk 0:00:36.4]} 33... h5 {[%clk 0:00:35.3]} 34. Rc2 {[%clk 0:00:36]} 34...
Rxc2 {[%clk 0:00:34]} 35. Kxc2 {[%clk 0:00:35.8]} 35... Kf6 {[%clk 0:00:32.7]}
36. h4 {[%clk 0:00:34.7]} 36... Kf5 {[%clk 0:00:32.1]} 37. Kd3 {[%clk
0:00:34.6]} 37... f6 {[%clk 0:00:28.3]} 38. f3 {[%clk 0:00:32.3]} 38... g5
{[%clk 0:00:24]} 39. Ke2 {[%clk 0:00:29]} 39... e5 {[%clk 0:00:10.7]} 40. dxe5
{[%clk 0:00:23.4]} 1-0

[Event "Betsys MČR v online bleskovém šachu 2021"]
[Site "Chess.com"]
[Date "2021.04.17"]
[Round "13"]
[White "Hroch_Hippo"]
[Black "Skalicky"]
[Result "1-0"]
[WhiteElo "1068"]
[BlackElo "660"]
[TimeControl "180+1"]
[EndTime "11:11:17 PDT"]
[Termination "Uživatel Hroch_Hippo zvítězil na čas"]

1. e4 {[%clk 0:03:00.6]} 1... c5 {[%clk 0:02:59.8]} 2. Qh5 {[%clk 0:02:59.1]}
2... Nf6 {[%clk 0:02:59.2]} 3. Qxc5 {[%clk 0:02:56.4]} 3... Nxe4 {[%clk
0:02:59]} 4. Qe3 {[%clk 0:02:56.2]} 4... Nf6 {[%clk 0:02:56.4]} 5. Qf3 {[%clk
0:02:56.4]} 5... e6 {[%clk 0:02:55.6]} 6. d3 {[%clk 0:02:56.1]} 6... Be7 {[%clk
0:02:54.6]} 7. Bg5 {[%clk 0:02:56.4]} 7... O-O {[%clk 0:02:54]} 8. Bxf6 {[%clk
0:02:56.5]} 8... Bxf6 {[%clk 0:02:53.5]} 9. Be2 {[%clk 0:02:57.1]} 9... Nc6
{[%clk 0:02:52.6]} 10. Nc3 {[%clk 0:02:56.6]} 10... Qc7 {[%clk 0:02:47.9]} 11.
O-O-O {[%clk 0:02:51.2]} 11... d6 {[%clk 0:02:42.2]} 12. Nb5 {[%clk 0:02:47.7]}
12... Qb8 {[%clk 0:02:41.2]} 13. d4 {[%clk 0:02:43.4]} 13... a6 {[%clk
0:02:39.8]} 14. Nc3 {[%clk 0:02:40.7]} 14... Rd8 {[%clk 0:02:33.7]} 15. d5
{[%clk 0:02:40.4]} 15... exd5 {[%clk 0:02:21.2]} 16. Nxd5 {[%clk 0:02:37.4]}
16... Ne7 {[%clk 0:02:16.3]} 17. Nxe7+ {[%clk 0:02:37]} 17... Bxe7 {[%clk
0:02:15.7]} 18. Bc4 {[%clk 0:02:37.1]} 18... Rf8 {[%clk 0:02:08.1]} 19. Nh3
{[%clk 0:02:29.3]} 19... Qc7 {[%clk 0:02:05.9]} 20. Bd3 {[%clk 0:02:26.6]} 20...
Be6 {[%clk 0:02:02.3]} 21. Qe4 {[%clk 0:02:21.3]} 21... g6 {[%clk 0:02:00.3]}
22. f4 {[%clk 0:02:16.7]} 22... Bf5 {[%clk 0:01:57]} 23. Qd5 {[%clk 0:02:09.3]}
23... Bxd3 {[%clk 0:01:55.8]} 24. Qxd3 {[%clk 0:02:06.5]} 24... Rfd8 {[%clk
0:01:51.4]} 25. f5 {[%clk 0:02:06.2]} 25... Rac8 {[%clk 0:01:39.8]} 26. fxg6
{[%clk 0:02:01.4]} 26... fxg6 {[%clk 0:01:33.6]} 27. Qd5+ {[%clk 0:01:55.8]}
27... Kg7 {[%clk 0:01:22.9]} 28. Rd2 {[%clk 0:01:48]} 28... Qc6 {[%clk
0:01:12.9]} 29. Qxc6 {[%clk 0:01:45.6]} 29... Rxc6 {[%clk 0:01:12.1]} 30. Nf4
{[%clk 0:01:43.9]} 30... Bg5 {[%clk 0:01:09.3]} 31. Ne6+ {[%clk 0:01:41.8]}
31... Kf6 {[%clk 0:01:01.8]} 32. Nxd8 {[%clk 0:01:41.6]} 32... Bxd2+ {[%clk
0:01:01.2]} 33. Kxd2 {[%clk 0:01:41.9]} 33... Rc8 {[%clk 0:00:59.3]} 34. Rf1+
{[%clk 0:01:40.4]} 34... Ke7 {[%clk 0:00:57]} 35. Nf7 {[%clk 0:01:40.4]} 35...
Rf8 {[%clk 0:00:55.5]} 36. c4 {[%clk 0:01:35.8]} 36... Rxf7 {[%clk 0:00:55.3]}
37. Rxf7+ {[%clk 0:01:35.2]} 37... Kxf7 {[%clk 0:00:55.1]} 38. Kd3 {[%clk
0:01:36.1]} 38... Ke6 {[%clk 0:00:54.9]} 39. Kd4 {[%clk 0:01:36.5]} 39... h5
{[%clk 0:00:50.4]} 40. g3 {[%clk 0:01:33.9]} 40... g5 {[%clk 0:00:49.6]} 41. h4
{[%clk 0:01:31.5]} 41... g4 {[%clk 0:00:49.1]} 42. Ke4 {[%clk 0:01:29.8]} 42...
b5 {[%clk 0:00:44]} 43. cxb5 {[%clk 0:01:29.4]} 43... axb5 {[%clk 0:00:43.6]}
44. Kf4 {[%clk 0:01:29.9]} 44... Kf6 {[%clk 0:00:41.3]} 45. a3 {[%clk
0:01:28.4]} 45... Kg6 {[%clk 0:00:38.4]} 46. b3 {[%clk 0:01:28.4]} 46... Kf6
{[%clk 0:00:35.1]} 47. a4 {[%clk 0:01:28.4]} 47... bxa4 {[%clk 0:00:28.2]} 48.
bxa4 {[%clk 0:01:28.9]} 48... Ke7 {[%clk 0:00:25.3]} 49. Kg5 {[%clk 0:01:28.4]}
49... Kd7 {[%clk 0:00:20.2]} 50. Kxh5 {[%clk 0:01:27.9]} 50... d5 {[%clk
0:00:19]} 51. Kxg4 {[%clk 0:01:27.9]} 51... d4 {[%clk 0:00:16.8]} 52. Kf3 {[%clk
0:01:28.1]} 52... d3 {[%clk 0:00:15.2]} 53. Ke3 {[%clk 0:01:28.7]} 53... d2
{[%clk 0:00:13.3]} 54. Kxd2 {[%clk 0:01:29.3]} 54... Kc6 {[%clk 0:00:13.1]} 55.
g4 {[%clk 0:01:28.5]} 55... Kd5 {[%clk 0:00:12.8]} 56. h5 {[%clk 0:01:28.7]}
56... Ke5 {[%clk 0:00:12.9]} 57. g5 {[%clk 0:01:29]} 57... Kf5 {[%clk
0:00:12.9]} 58. a5 {[%clk 0:01:28.9]} 58... Kxg5 {[%clk 0:00:12.2]} 59. a6
{[%clk 0:01:29.6]} 59... Kxh5 {[%clk 0:00:12.3]} 60. a7 {[%clk 0:01:30.5]} 60...
Kg6 {[%clk 0:00:12]} 61. a8=Q {[%clk 0:01:31.4]} 61... Kf5 {[%clk 0:00:11.8]}
62. Qe8 {[%clk 0:01:29]} 62... Kf4 {[%clk 0:00:11.3]} 63. Kd3 {[%clk 0:01:29.9]}
63... Kg5 {[%clk 0:00:09.9]} 64. Qf7 {[%clk 0:01:28.3]} 64... Kg4 {[%clk
0:00:09.7]} 65. Ke3 {[%clk 0:01:27.7]} 65... Kg5 {[%clk 0:00:06.7]} 66. Kf3
{[%clk 0:01:24.9]} 66... Kh4 {[%clk 0:00:03.4]} 67. Qg8 {[%clk 0:01:23.3]} 1-0

[Event "Betsys MČR v online bleskovém šachu 2021"]
[Site "Chess.com"]
[Date "2021.04.17"]
[Round "13"]
[White "JustFilip05"]
[Black "BetsysBetting"]
[Result "1-0"]
[WhiteElo "2121"]
[BlackElo "1968"]
[TimeControl "180+1"]
[EndTime "11:11:18 PDT"]
[Termination "Uživatel JustFilip05 zvítězil po vzdání soupeře"]

1. d4 {[%clk 0:03:00.6]} 1... Nf6 {[%clk 0:02:57.4]} 2. Nc3 {[%clk 0:03:00.7]}
2... d6 {[%clk 0:02:49]} 3. e4 {[%clk 0:02:55.7]} 3... c6 {[%clk 0:02:48.4]} 4.
Nf3 {[%clk 0:02:53.4]} 4... Nbd7 {[%clk 0:02:47.8]} 5. g3 {[%clk 0:02:52.1]}
5... e5 {[%clk 0:02:46.4]} 6. dxe5 {[%clk 0:02:51]} 6... dxe5 {[%clk 0:02:46.1]}
7. Bg2 {[%clk 0:02:51.1]} 7... Bc5 {[%clk 0:02:41.2]} 8. O-O {[%clk 0:02:50.8]}
8... O-O {[%clk 0:02:40.7]} 9. Qe2 {[%clk 0:02:45]} 9... Re8 {[%clk 0:02:33.8]}
10. Be3 {[%clk 0:02:43.8]} 10... Qe7 {[%clk 0:02:29.6]} 11. Rfd1 {[%clk
0:02:42.6]} 11... Bxe3 {[%clk 0:02:22.9]} 12. Qxe3 {[%clk 0:02:42.5]} 12... Ng4
{[%clk 0:02:23.3]} 13. Qe2 {[%clk 0:02:42.5]} 13... Nc5 {[%clk 0:02:19.9]} 14.
Nd2 {[%clk 0:02:39.8]} 14... h5 {[%clk 0:02:04.5]} 15. h3 {[%clk 0:02:32]} 15...
Nf6 {[%clk 0:02:01.5]} 16. Nb3 {[%clk 0:02:21.5]} 16... Ne6 {[%clk 0:02:00.9]}
17. Rd2 {[%clk 0:02:17.6]} 17... h4 {[%clk 0:01:54.4]} 18. Rad1 {[%clk
0:02:16.3]} 18... b6 {[%clk 0:01:50.1]} 19. Qc4 {[%clk 0:01:48.6]} 19... Bb7
{[%clk 0:01:38.7]} 20. Ne2 {[%clk 0:01:41.1]} 20... a5 {[%clk 0:01:28]} 21. a4
{[%clk 0:01:40]} 21... Rac8 {[%clk 0:01:22.1]} 22. g4 {[%clk 0:01:25.9]} 22...
c5 {[%clk 0:01:12.1]} 23. Qb5 {[%clk 0:01:04.1]} 23... Qc7 {[%clk 0:00:51.6]}
24. Nc3 {[%clk 0:00:21.7]} 24... Nf4 {[%clk 0:00:37.8]} 25. g5 {[%clk
0:00:19.7]} 25... N6h5 {[%clk 0:00:29.4]} 26. Rd7 {[%clk 0:00:19.5]} 26... Qc6
{[%clk 0:00:20.6]} 27. R1d6 {[%clk 0:00:19.5]} 27... Qxb5 {[%clk 0:00:18.1]} 28.
axb5 {[%clk 0:00:20.3]} 28... Nxg2 {[%clk 0:00:10.6]} 29. Kxg2 {[%clk
0:00:20.1]} 29... Nf4+ {[%clk 0:00:09.9]} 30. Kh2 {[%clk 0:00:20.8]} 30... Ba8
{[%clk 0:00:09.4]} 31. Rxb6 {[%clk 0:00:20.7]} 31... c4 {[%clk 0:00:09]} 32.
Nxa5 {[%clk 0:00:20.5]} 32... Ne2 {[%clk 0:00:07.4]} 33. Nxe2 {[%clk 0:00:18.7]}
33... Red8 {[%clk 0:00:06.8]} 34. Rbd6 {[%clk 0:00:18.7]} 34... Rxd7 {[%clk
0:00:05.5]} 35. Rxd7 {[%clk 0:00:19.6]} 35... Rb8 {[%clk 0:00:06.4]} 36. Nc6
{[%clk 0:00:19.9]} 36... Bxc6 {[%clk 0:00:06.1]} 37. bxc6 {[%clk 0:00:19.8]}
37... Rc8 {[%clk 0:00:07]} 38. c7 {[%clk 0:00:20.2]} 38... Kh7 {[%clk
0:00:06.6]} 39. Nc3 {[%clk 0:00:19.7]} 39... Kg6 {[%clk 0:00:06.6]} 40. Nd5
{[%clk 0:00:20.6]} 40... Kxg5 {[%clk 0:00:06.9]} 41. Rd8 {[%clk 0:00:21.2]}
41... Rxc7 {[%clk 0:00:06.2]} 42. Nxc7 {[%clk 0:00:20.8]} 1-0